bitfinex/quotes_SOLUSD_20250528
["timestamp","ask_amount","ask_price","bid_price","bid_amount"]
[1748424247034,36.65699423,173.29,173.24,25.55963721]
[1748424247395,22.23031064,173.29,173.25,16.45963721]
[1748424247702,22.23031064,173.29,173.24,9.1]
[1748424247912,22.23031064,173.29,173.25,16.45963721]
[1748424249198,5.77067343,173.29,173.25,16.45963721]
[1748424249401,22.23031064,173.29,173.25,16.45963721]
[1748424250898,5.7700075,173.31,173.27,16.45963721]
[1748424251103,5.7700075,173.31,173.24,14.87228507]
[1748424251303,5.76967459,173.32,173.29,16.45963721]
[1748424251509,5.76967459,173.32,173.26,5.7715996]
[1748424251707,5.76967459,173.32,173.3,16.45963721]
[1748424252134,5.76967459,173.32,173.29,16.45963721]
[1748424252502,5.76934171,173.33,173.29,16.45963721]
[1748424252910,5.76934171,173.33,173.25,16.45963721]
[1748424252911,5.76934171,173.33,173.25,5.77193954]
[1748424253218,5.76934171,173.33,173.29,16.45963721]
[1748424256727,5.76934171,173.33,173.3,16.45963721]
[1748424257034,16.45963721,173.34,173.3,16.45963721]
[1748424257201,20.19047561,173.35,173.3,16.45963721]
[1748424257403,16.45963721,173.34,173.29,16.45963721]
[1748424257927,20.19047561,173.35,173.29,16.45963721]
[1748424258127,16.45963721,173.34,173.29,16.45963721]
[1748424258629,20.19047561,173.35,173.29,16.45963721]
[1748424258630,16.45963721,173.33,173.29,16.45963721]
[1748424260228,5.76967459,173.32,173.29,16.45963721]
[1748424262030,16.45963721,173.33,173.29,16.45963721]
[1748424262610,20.19047561,173.35,173.29,16.45963721]
[1748424262821,16.45963721,173.34,173.29,16.45963721]
[1748424264338,5.76934171,173.33,173.29,16.45963721]
[1748424267318,36.65233321,173.33,173.28,16.45963721]
[1748424270242,14.42335429,173.33,173.29,16.45963721]
[1748424270534,30.8829915,173.33,173.29,16.45963721]
[1748424270714,30.8829915,173.33,173.27,26.0]
[1748424270912,30.8829915,173.33,173.28,16.45963721]
[1748424272241,36.65233321,173.33,173.28,16.45963721]
[1748424278532,16.45963721,173.32,173.28,16.45963721]
[1748424279044,14.42335429,173.33,173.24,97.2]
[1748424279045,16.45963721,173.31,173.26,16.45963721]
[1748424280730,5.77034045,173.3,173.26,16.45963721]
[1748424286632,16.45963721,173.3,173.26,16.45963721]
[1748424287341,16.45963721,173.3,173.24,9.1]
[1748424287342,16.45963721,173.27,173.24,9.1]
[1748424287946,10.54139096,173.27,173.24,9.1]
[1748424288658,10.54139096,173.27,173.23,26.0]
[1748424288961,5.77167263,173.26,173.23,26.0]
[1748424289558,5.77167263,173.26,173.25,10.54139096]
[1748424290066,5.77167263,173.26,173.25,16.46727994]
[1748424290355,5.77100646,173.28,173.25,16.46727994]
[1748424290655,5.77100646,173.28,173.26,16.46727994]
[1748424291045,20.19695513,173.3,173.26,16.46727994]
[1748424292462,14.42661468,173.3,173.26,16.46727994]
[1748424292668,30.89389462,173.3,173.25,16.46727994]
[1748424293254,30.89389462,173.3,173.24,26.0]
[1748424293255,14.42661468,173.3,173.26,16.46727994]
[1748424295149,20.19695513,173.3,173.26,16.46727994]
[1748424297268,20.19695513,173.3,173.22,97.18]
[1748424297451,20.19695513,173.3,173.26,16.46727994]
[1748424299749,36.66423507,173.3,173.26,16.46727994]
[1748424301372,16.46727994,173.29,173.24,16.46727994]
[1748424301776,16.46727994,173.28,173.24,16.46727994]
[1748424302274,5.77133952,173.27,173.24,16.46727994]
[1748424304455,20.19864764,173.28,173.24,16.46727994]
[1748424305469,20.19864764,173.28,173.22,35.08]
[1748424305470,20.19864764,173.28,173.25,16.46727994]
[1748424305992,20.19864764,173.28,173.24,16.46727994]
[1748424306669,20.19864764,173.28,173.22,35.08]
[1748424306879,36.66592758,173.28,173.24,16.46727994]
[1748424307185,36.66592758,173.28,173.22,35.08]
[1748424307186,16.46727994,173.27,173.22,35.08]
[1748424307357,16.46727994,173.27,173.23,16.46727994]
[1748424307849,16.46727994,173.26,173.22,9.08]
[1748424308053,20.19864764,173.28,173.21,26.0]
[1748424308054,16.46727994,173.25,173.21,26.0]
[1748424308272,16.46727994,173.25,173.2,104.56727994]
[1748424308473,5.77300542,173.22,173.18,312.68207541]
[1748424308694,5.77300542,173.22,173.19,42.46727994]
[1748424308887,5.77269413,173.23,173.2,16.46727994]
[1748424309092,5.77200577,173.25,173.22,16.46727994]
[1748424309297,5.77200577,173.25,173.24,16.46727994]
[1748424310478,5.77100646,173.28,173.24,16.46727994]
[1748424310679,16.46727994,173.28,173.24,16.46727994]
[1748424312398,5.77133952,173.27,173.24,16.46727994]
[1748424314992,30.89396353,173.29,173.24,16.46727994]
[1748424314993,20.19852261,173.28,173.24,16.46727994]
[1748424316376,14.42751615,173.28,173.24,16.46727994]
[1748424319200,20.19852261,173.28,173.24,16.46727994]
[1748424321799,5.77100646,173.28,173.27,16.46727994]
[1748424322394,5.77100646,173.28,173.23,26.0]
[1748424322584,5.77100646,173.28,173.25,16.46727994]
[1748424323092,5.48245646,173.28,173.25,16.46727994]
[1748424324210,19.90997261,173.28,173.25,16.46727994]
[1748424327191,19.90997261,173.28,173.26,16.46727994]
[1748424327418,5.48245646,173.28,173.27,16.46727994]
[1748424328196,5.77034045,173.3,173.27,16.46727994]
[1748424330311,20.19619157,173.3,173.27,16.46727994]
[1748424331510,20.19619157,173.3,173.26,16.46727994]
[1748424333929,20.19619157,173.3,173.26,10.53751734]
[1748424336404,5.77034045,173.3,173.29,10.53751734]
[1748424336599,5.76967459,173.32,173.29,10.53751734]
[1748424336802,5.76967459,173.32,173.31,10.53751734]
[1748424337630,5.76900888,173.34,173.31,10.53751734]
[1748424337992,5.76900888,173.34,173.32,16.45490916]
[1748424339004,20.18993952,173.36,173.32,16.45490916]
[1748424339816,20.18993952,173.36,173.33,16.45490916]
[1748424340594,20.18993952,173.36,173.32,16.45490916]
[1748424343113,20.18993952,173.36,173.33,16.45490916]
[1748424343324,14.42159619,173.36,173.33,16.45490916]
[1748424346324,14.42159619,173.36,173.32,16.45490916]
[1748424347006,20.18993952,173.36,173.32,16.45490916]
[1748424347206,36.64484868,173.36,173.32,16.45490916]
[1748424347830,36.64484868,173.36,173.29,88.1]
[1748424348030,36.64484868,173.36,173.32,16.45490916]
[1748424349629,16.45490916,173.35,173.31,16.45490916]
[1748424350327,5.76900888,173.34,173.31,16.45490916]
[1748424352233,5.76900888,173.34,173.32,16.45490916]
[1748424353940,20.1903663,173.35,173.32,16.45490916]
[1748424356035,20.1903663,173.35,173.33,16.45490916]
[1748424357111,14.42169022,173.35,173.33,16.45490916]
[1748424358016,14.42169022,173.35,173.33,10.52960027]
[1748424359126,14.42169022,173.35,173.32,10.52960027]
[1748424362031,10.52960027,173.36,173.32,10.52960027]
[1748424362846,10.52960027,173.37,173.32,10.52960027]
[1748424363729,10.52960027,173.37,173.33,10.52960027]
[1748424364633,5.76834333,173.36,173.33,10.52960027]
[1748424367455,24.9497409,173.37,173.33,10.52960027]
[1748424368530,10.52960027,173.36,173.28,89.7088]
[1748424368726,10.52960027,173.32,173.29,26.0]
[1748424368935,10.52960027,173.32,173.28,10.52960027]
[1748424369851,5.7700075,173.31,173.28,10.52960027]
[1748424370022,20.19502625,173.31,173.28,10.52960027]
[1748424370422,20.19502625,173.31,173.27,36.52960027]
[1748424371856,30.72462652,173.31,173.27,36.52960027]
[1748424379742,30.72462652,173.31,173.27,10.52960027]
[1748424381330,20.19502625,173.31,173.27,10.52960027]
[1748424381554,20.19502625,173.31,173.28,10.52960027]
[1748424383657,20.19502625,173.31,173.27,10.52960027]
[1748424383854,10.52960027,173.3,173.25,26.0]
[1748424384057,10.52960027,173.3,173.26,10.52960027]
[1748424384858,5.77067343,173.29,173.26,10.52960027]
[1748424385357,20.19735702,173.29,173.26,10.52960027]
[1748424385663,20.19735702,173.29,173.25,36.52960027]
[1748424385854,30.72695729,173.29,173.25,36.52960027]
[1748424387866,30.72695729,173.29,173.25,26.0]
[1748424388043,30.72695729,173.29,173.25,36.52960027]
[1748424389235,30.72695729,173.29,173.25,26.0]
[1748424392063,10.52960027,173.26,173.21,26.0]
[1748424392364,10.52960027,173.26,173.22,10.52960027]
[1748424392664,10.52960027,173.26,173.22,36.52960027]
[1748424393283,5.77200577,173.25,173.22,36.52960027]
[1748424393464,5.77200577,173.25,173.23,10.52960027]
[1748424394797,5.77200577,173.25,173.24,10.52960027]
[1748424396059,5.77133952,173.27,173.24,10.52960027]
[1748424396376,5.77133952,173.27,173.23,10.52960027]
[1748424398376,10.52960027,173.27,173.23,10.52960027]
[1748424400477,10.52960027,173.27,173.22,26.0]
[1748424400655,5.77167263,173.26,173.23,10.52960027]
[1748424405577,24.95730653,173.28,173.23,10.52960027]
[1748424407254,30.72831299,173.28,173.23,10.52960027]
[1748424408062,10.52960027,173.27,173.23,10.52960027]
[1748424409477,5.77167263,173.26,173.23,10.52960027]
[1748424410378,10.52960027,173.25,173.21,9.04]
[1748424410558,10.52960027,173.24,173.21,9.04]
[1748424411177,10.52960027,173.25,173.21,19.56960027]
[1748424411561,5.77233895,173.24,173.21,19.56960027]
[1748424411886,10.52960027,173.22,173.16,4.09200531]
[1748424412061,20.20318632,173.24,173.16,4.09200531]
[1748424412062,10.52960027,173.2,173.16,4.09200531]
[1748424412588,10.52960027,173.19,173.16,4.09200531]
[1748424413795,16.30360569,173.19,173.16,4.09200531]
[1748424423878,16.30360569,173.19,173.18,286.0355438]
[1748424425170,5.77400542,173.19,173.18,286.0355438]
[1748424425367,10.52960027,173.19,173.18,286.0355438]
[1748424425768,16.30304372,173.21,173.18,286.0355438]
[1748424426871,5.77344345,173.21,173.18,286.0355438]
[1748424427076,16.30304372,173.21,173.18,286.0355438]
[1748424428989,10.52960027,173.2,173.18,286.0355438]
[1748424429487,16.30304372,173.21,173.18,286.0355438]
[1748424430987,10.52960027,173.2,173.18,286.0355438]
[1748424432606,51.42304372,173.21,173.18,286.0355438]
[1748424435802,40.89344345,173.21,173.18,286.0355438]
[1748424436101,51.42304372,173.21,173.18,286.0355438]
[1748424436507,45.64960027,173.21,173.18,286.0355438]
[1748424437425,10.52960027,173.21,173.18,286.0355438]
[1748424437716,10.52960027,173.22,173.18,286.0355438]
[1748424437905,35.12,173.21,173.18,286.0355438]
[1748424438089,35.12,173.21,173.18,302.33937627]
[1748424438418,35.12,173.21,173.18,296.56514407]
[1748424439484,10.52960027,173.23,173.18,296.56514407]
[1748424439485,16.3024036,173.23,173.18,296.56514407]
[1748424439703,5.77200577,173.25,173.2,10.52960027]
[1748424439880,16.30160604,173.25,173.21,10.52960027]
[1748424440082,5.77200577,173.25,173.21,10.52960027]
[1748424440311,9.04,173.26,173.18,291.80987513]
[1748424440312,16.30140022,173.26,173.18,291.80987513]
[1748424440622,16.30071694,173.28,173.24,10.52960027]
[1748424440835,5.77111667,173.28,173.25,10.52960027]
[1748424441045,25.34039787,173.29,173.25,10.52960027]
[1748424441215,35.12,173.28,173.25,10.52960027]
[1748424441519,18.64964886,173.32,173.27,10.52960027]
[1748424441520,5.77008617,173.31,173.27,10.52960027]
[1748424441721,5.76908278,173.34,173.3,10.52960027]
[1748424442008,45.64960027,173.35,173.31,10.52960027]
[1748424442209,16.2979436,173.36,173.31,10.52960027]
[1748424442395,5.76834333,173.36,173.33,10.52960027]
[1748424442594,10.52960027,173.38,173.34,10.52960027]
[1748424442911,45.64960027,173.38,173.34,10.52960027]
[1748424443620,45.64960027,173.38,173.35,10.52960027]
[1748424443621,35.12,173.38,173.35,10.52960027]
[1748424443815,35.12,173.38,173.34,10.52960027]
[1748424444117,16.44956984,173.37,173.33,21.13677243]
[1748424444297,16.44956984,173.36,173.31,16.44956984]
[1748424444692,16.44956984,173.33,173.29,42.44956984]
[1748424445016,16.44956984,173.32,173.28,16.44956984]
[1748424445590,5.7700075,173.31,173.28,16.44956984]
[1748424448123,5.76967459,173.32,173.28,16.44956984]
[1748424449824,36.6434309,173.32,173.28,26.0]
[1748424450336,16.44956984,173.3,173.26,26.0]
[1748424450531,16.44956984,173.29,173.26,26.0]
[1748424450696,16.44956984,173.29,173.25,16.44956984]
[1748424452114,5.77100646,173.28,173.25,16.44956984]
[1748424452435,5.77100646,173.28,173.24,42.44956984]
[1748424452615,22.2205763,173.28,173.24,16.44956984]
[1748424453598,22.2205763,173.28,173.24,42.44956984]
[1748424455214,36.64809245,173.28,173.24,16.44956984]
[1748424455409,36.64809245,173.28,173.23,42.44956984]
[1748424456032,36.64809245,173.28,173.21,16.44956984]
[1748424456033,16.44956984,173.26,173.21,16.44956984]
[1748424456206,5.77200577,173.25,173.21,16.44956984]
[1748424456803,5.77200577,173.25,173.22,16.44956984]
[1748424458231,5.77167263,173.26,173.22,16.44956984]
[1748424458735,5.77167263,173.26,173.23,16.44956984]
[1748424458933,5.77167263,173.26,173.24,16.44956984]
[1748424459132,5.77144796,173.27,173.25,16.44956984]
[1748424459333,5.76934171,173.33,173.26,42.44956984]
[1748424459530,5.76934171,173.33,173.3,16.44956984]
[1748424460225,20.19207028,173.34,173.3,16.44956984]
[1748424461339,36.64164012,173.34,173.3,16.44956984]
[1748424462032,20.19207028,173.34,173.3,16.44956984]
[1748424465436,5.76900888,173.34,173.32,16.44956984]
[1748424465632,5.76900888,173.34,173.33,16.44956984]
[1748424466234,5.76900888,173.34,173.32,16.44956984]
[1748424466567,20.18920165,173.36,173.32,16.44956984]
[1748424467233,20.18920165,173.36,173.33,16.44956984]
[1748424467547,20.18920165,173.36,173.32,16.44956984]
[1748424472453,36.63877149,173.36,173.31,16.44956984]
[1748424472653,16.44956984,173.35,173.29,26.0]
[1748424472830,16.44956984,173.34,173.3,16.44956984]
[1748424474148,5.76934171,173.33,173.3,16.44956984]
[1748424474350,5.76934171,173.33,173.29,26.0]
[1748424474557,5.76934171,173.33,173.29,42.44956984]
[1748424475359,36.64226584,173.33,173.28,16.44956984]
[1748424476555,36.64226584,173.33,173.29,16.44956984]
[1748424479953,36.64226584,173.33,173.28,16.44956984]
[1748424481870,36.64226584,173.33,173.26,9.02]
[1748424482166,16.44956984,173.27,173.22,104.54956984]
[1748424482366,26.0,173.29,173.22,16.44956984]
[1748424482367,16.44956984,173.26,173.22,16.44956984]
[1748424482541,16.44956984,173.26,173.21,113.56956984]
[1748424484070,5.77200577,173.25,173.21,113.56956984]
[1748424484543,20.2020202,173.25,173.22,16.44956984]
[1748424486963,36.65159004,173.25,173.21,9.02]
[1748424488075,36.65159004,173.25,173.2,42.44956984]
[1748424488372,16.44956984,173.24,173.2,26.0]
[1748424488545,16.44956984,173.24,173.19,42.44956984]
[1748424489959,16.44956984,173.23,173.19,42.44956984]
[1748424490159,5.77300542,173.22,173.19,42.44956984]
[1748424492472,14.43001443,173.25,173.19,42.44956984]
[1748424492676,16.44956984,173.23,173.19,42.44956984]
[1748424493876,14.43001443,173.25,173.18,286.0355438]
[1748424493877,16.44956984,173.21,173.18,286.0355438]
[1748424494076,16.44956984,173.21,173.18,312.0355438]
[1748424494278,16.44956984,173.2,173.18,286.0355438]
[1748424494783,5.77400542,173.19,173.18,286.0355438]
[1748424498783,22.22357526,173.19,173.18,286.0355438]
[1748424502073,5.77400542,173.19,173.18,286.0355438]
[1748424502281,22.22357526,173.19,173.18,286.0355438]
[1748424505692,5.77400542,173.19,173.18,286.0355438]
[1748424505890,22.22357526,173.19,173.18,286.0355438]
[1748424507496,57.32357526,173.19,173.18,286.0355438]
[1748424507696,22.22357526,173.19,173.18,286.0355438]
[1748424508002,57.32357526,173.19,173.18,286.0355438]
[1748424508177,40.87400542,173.19,173.18,286.0355438]
[1748424508376,57.32357526,173.19,173.18,286.0355438]
[1748424512502,75.97322412,173.19,173.18,286.0355438]
[1748424523599,40.87322412,173.19,173.18,286.0355438]
[1748424523795,75.97322412,173.19,173.18,286.0355438]
[1748424524516,40.87400542,173.19,173.18,286.0355438]
[1748424524809,57.32357526,173.19,173.18,286.0355438]
[1748424525217,22.22357526,173.19,173.18,286.0355438]
[1748424525520,57.32357526,173.19,173.18,286.0355438]
[1748424531401,75.97322412,173.19,173.18,286.0355438]
[1748424533010,57.32357526,173.19,173.18,286.0355438]
[1748424534293,40.87400542,173.19,173.18,286.0355438]
[1748424534504,57.32357526,173.19,173.18,286.0355438]
[1748424543295,40.87400542,173.19,173.18,286.0355438]
[1748424543491,57.32357526,173.19,173.18,286.0355438]
[1748424546308,5.77400542,173.19,173.18,286.0355438]
[1748424546505,57.32357526,173.19,173.18,286.0355438]
[1748424547097,22.22357526,173.19,173.18,286.0355438]
[1748424547298,57.32357526,173.19,173.18,286.0355438]
[1748424553927,75.97322412,173.19,173.18,286.0355438]
[1748424557228,59.52365428,173.19,173.18,286.0355438]
[1748424557426,75.97322412,173.19,173.18,286.0355438]
[1748424557914,70.07747523,173.19,173.18,286.0355438]
[1748424558116,5.77400542,173.19,173.18,286.0355438]
[1748424558333,51.42782637,173.19,173.18,286.0355438]
[1748424559964,57.3642407,173.19,173.18,286.0355438]
[1748424566320,76.01388956,173.19,173.18,286.0355438]
[1748424580030,70.07995581,173.19,173.18,286.0355438]
[1748424581834,113.82466193,173.19,173.18,214.64640745]
[1748424583851,61.04315428,173.19,173.18,214.64640745]
[1748424584144,113.82466193,173.19,173.18,214.64640745]
[1748424584647,113.82466193,173.19,173.18,143.2572711]
[1748424585936,45.65630153,173.19,173.18,143.2572711]
[1748424587853,70.07995581,173.19,173.18,143.2572711]
[1748424594159,96.07995581,173.19,173.18,143.2572711]
[1748424596252,98.21101215,173.19,173.18,143.2572711]
[1748424597962,98.21106728,173.19,173.18,143.2572711]
[1748424598266,98.2110946,173.19,173.18,143.2572711]
[1748424599356,72.2110946,173.19,173.18,143.2572711]
[1748424600252,61.65479307,173.19,173.18,143.2572711]
[1748424600453,72.2110946,173.19,173.18,143.2572711]
[1748424600652,61.65479307,173.19,173.18,143.2572711]
[1748424600956,72.2110946,173.19,173.18,143.2572711]
[1748424601369,72.21096454,173.19,173.18,143.2572711]
[1748424601863,70.07995581,173.19,173.18,143.2572711]
[1748424602173,72.21089806,173.19,173.18,143.2572711]
[1748424602695,72.21089806,173.19,173.18,71.86813475]
[1748424602696,82.76704543,173.19,173.18,71.86813475]
[1748424603181,72.2107439,173.19,173.18,71.86813475]
[1748424603667,61.65444237,173.19,173.18,71.86813475]
[1748424603967,72.21031641,173.19,173.18,71.86813475]
[1748424604143,70.07995581,173.19,173.18,71.86813475]
[1748424604343,72.2104774,173.19,173.18,71.86813475]
[1748424604782,7.90452701,173.19,173.18,71.86813475]
[1748424604939,18.46076951,173.19,173.18,71.86813475]
[1748424605272,40.87400542,173.19,173.18,71.86813475]
[1748424605474,40.87400542,173.19,173.18,82.42443628]
[1748424605475,5.77400542,173.19,173.18,82.42443628]
[1748424606253,35.1,173.2,173.19,6.0895]
[1748424606472,35.1,173.2,173.19,16.64580153]
[1748424606652,35.1,173.21,173.2,1.593]
[1748424606851,5.77267216,173.23,173.2,12.14930153]
[1748424607051,40.87267216,173.23,173.21,10.55630153]
[1748424607255,35.1,173.22,173.21,10.55630153]
[1748424607556,40.87300542,173.22,173.21,10.55630153]
[1748424607743,5.77300542,173.22,173.21,10.55630153]
[1748424610071,5.77300542,173.22,173.21,16.47487248]
[1748424610271,5.77300542,173.22,173.2,18.06787248]
[1748424611057,35.1,173.21,173.18,71.86813475]
[1748424611261,16.47487248,173.19,173.18,71.86813475]
[1748424611575,57.3488779,173.19,173.18,71.86813475]
[1748424612159,5.77400542,173.19,173.18,71.86813475]
[1748424612350,40.85400542,173.19,173.18,71.86813475]
[1748424612975,57.3288779,173.19,173.18,71.86813475]
[1748424617205,40.85400542,173.19,173.18,71.86813475]
[1748424617689,57.3288779,173.19,173.18,71.86813475]
[1748424618496,40.85400542,173.19,173.18,71.86813475]
[1748424618784,57.3288779,173.19,173.18,71.86813475]
[1748424619080,5.77400542,173.19,173.18,71.86813475]
[1748424619285,40.87400542,173.19,173.18,71.86813475]
[1748424620572,57.3488779,173.19,173.18,71.86813475]
[1748424622980,40.87400542,173.19,173.18,71.86813475]
[1748424623301,57.3488779,173.19,173.18,71.86813475]
[1748424625665,75.99852676,173.19,173.18,71.86813475]
[1748424626988,78.12532651,173.19,173.18,71.86813475]
[1748424627371,43.02584645,173.19,173.18,71.86813475]
[1748424627569,59.47616963,173.19,173.18,71.86813475]
[1748424627775,5.77400542,173.19,173.18,71.86813475]
[1748424627981,40.87400542,173.19,173.18,71.86813475]
[1748424629291,5.77400542,173.19,173.18,71.86813475]
[1748424629595,40.87400542,173.19,173.18,71.86813475]
[1748424629776,5.77400542,173.19,173.18,71.86813475]
[1748424629983,40.87400542,173.19,173.18,71.86813475]
[1748424634801,5.77400542,173.19,173.18,88.34300723]
[1748424634994,40.87400542,173.19,173.18,71.86813475]
[1748424635196,40.87400542,173.19,173.18,88.34300723]
[1748424636399,5.77400542,173.19,173.18,88.34300723]
[1748424636614,40.87400542,173.19,173.18,88.34300723]
[1748424637583,40.87400542,173.19,173.18,71.86813475]
[1748424638993,57.3488779,173.19,173.18,71.86813475]
[1748424639818,59.47498609,173.19,173.18,71.86813475]
[1748424640318,59.47497294,173.19,173.18,71.86813475]
[1748424640500,57.3488779,173.19,173.18,71.86813475]
[1748424640685,40.87400542,173.19,173.18,71.86813475]
[1748424641711,5.77400542,173.19,173.18,71.86813475]
[1748424642013,41.07400542,173.19,173.18,71.86813475]
[1748424643408,41.09400542,173.19,173.18,71.86813475]
[1748424644490,41.09400542,173.19,173.18,88.34300723]
[1748424645107,20.20551898,173.22,173.18,88.34300723]
[1748424645314,35.32,173.21,173.18,88.34300723]
[1748424645884,35.32,173.21,173.19,16.47487248]
[1748424646088,35.32,173.21,173.18,71.86813475]
[1748424646301,35.32,173.21,173.19,16.47487248]
[1748424646499,20.20551898,173.22,173.19,16.47487248]
[1748424646706,35.32,173.21,173.19,16.47487248]
[1748424647218,5.77367205,173.2,173.19,16.47487248]
[1748424649097,5.77333872,173.21,173.19,16.47487248]
[1748424649419,5.77333872,173.21,173.2,16.47487248]
[1748424650506,5.77267216,173.23,173.2,16.47487248]
[1748424650714,5.77267216,173.23,173.22,16.47487248]
[1748424650903,35.3,173.26,173.22,16.47487248]
[1748424651119,5.77133952,173.27,173.25,16.47487248]
[1748424651417,41.07133952,173.27,173.26,16.47487248]
[1748424651717,5.77133952,173.27,173.26,16.47487248]
[1748424653209,14.42553859,173.31,173.26,16.47487248]
[1748424653407,14.42553859,173.31,173.29,16.47487248]
[1748424653601,14.42553859,173.31,173.25,42.47487248]
[1748424653602,14.42553859,173.31,173.3,16.47487248]
[1748424653921,5.76967459,173.32,173.3,16.47487248]
[1748424655025,20.19386106,173.32,173.3,16.47487248]
[1748424655323,14.42418647,173.32,173.3,16.47487248]
[1748424655709,14.42418647,173.32,173.25,42.47487248]
[1748424655909,14.42418647,173.32,173.3,16.47487248]
[1748424656629,20.19386106,173.32,173.3,16.47487248]
[1748424658122,20.19386106,173.32,173.31,16.47487248]
[1748424658631,14.42418647,173.32,173.31,16.47487248]
[1748424659203,5.76900888,173.34,173.31,16.47487248]
[1748424659422,5.76900888,173.34,173.33,16.47487248]
[1748424660699,20.18743904,173.38,173.33,16.47487248]
[1748424660900,55.48743904,173.38,173.35,16.47487248]
[1748424661123,20.18743904,173.38,173.36,16.47487248]
[1748424661301,20.18743904,173.38,173.34,16.47487248]
[1748424661629,36.66231152,173.38,173.34,16.47487248]
[1748424662125,20.18743904,173.38,173.34,16.47487248]
[1748424662716,55.54743904,173.38,173.35,16.47487248]
[1748424663113,55.54743904,173.38,173.36,16.47487248]
[1748424663735,20.18743904,173.38,173.37,16.47487248]
[1748424664938,14.41976111,173.38,173.37,16.47487248]
[1748424665922,14.41976111,173.38,173.36,16.47487248]
[1748424668929,14.41976111,173.38,173.31,114.1]
[1748424669116,14.41976111,173.38,173.36,16.47487248]
[1748424669512,16.47487248,173.37,173.33,16.47487248]
[1748424669723,16.47487248,173.36,173.32,16.47487248]
[1748424669923,51.83487248,173.37,173.32,16.47487248]
[1748424670416,20.18920165,173.36,173.32,16.47487248]
[1748424671220,36.66407413,173.36,173.32,16.47487248]
[1748424671536,16.47487248,173.35,173.31,16.47487248]
[1748424672420,65.50579078,173.36,173.31,16.47487248]
[1748424672605,65.50579078,173.36,173.3,26.0]
[1748424672606,20.18920165,173.36,173.33,16.47487248]
[1748424675743,20.18920165,173.36,173.35,16.47487248]
[1748424676831,5.76801061,173.37,173.35,16.47487248]
[1748424677037,5.76801061,173.37,173.3,5.77033084]
[1748424677038,5.76801061,173.37,173.36,16.47487248]
[1748424677411,5.76801061,173.37,173.3,93.87033084]
[1748424677412,5.76801061,173.37,173.3,88.1]
[1748424677611,5.76801061,173.37,173.36,16.47487248]
[1748424678512,20.18803714,173.37,173.35,16.47487248]
[1748424679025,14.42002653,173.37,173.35,16.47487248]
[1748424680246,14.42002653,173.37,173.36,16.47487248]
[1748424681351,14.42002653,173.37,173.29,26.0]
[1748424681648,14.42002653,173.37,173.36,16.47487248]
[1748424682342,20.18454439,173.4,173.36,16.47487248]
[1748424682545,20.18454439,173.4,173.37,16.47487248]
[1748424683346,16.47487248,173.39,173.32,27.5017]
[1748424683649,20.18454439,173.4,173.34,16.47487248]
[1748424683849,16.47487248,173.39,173.34,16.47487248]
[1748424684145,18.03717248,173.39,173.34,16.47487248]
[1748424684535,20.18687276,173.38,173.34,16.47487248]
[1748424685843,20.18687276,173.38,173.36,16.47487248]
[1748424686046,20.18687276,173.38,173.3,26.0]
[1748424686047,16.47487248,173.37,173.33,16.47487248]
[1748424686255,16.47487248,173.37,173.32,16.47487248]
[1748424686850,49.02526242,173.38,173.34,16.47487248]
[1748424687044,49.02526242,173.38,173.35,16.47487248]
[1748424687351,49.02526242,173.38,173.34,16.47487248]
[1748424687536,65.5001349,173.38,173.33,16.47487248]
[1748424687848,65.5001349,173.38,173.3,26.0]
[1748424688038,49.02526242,173.38,173.34,16.47487248]
[1748424688620,20.18687276,173.38,173.35,16.47487248]
[1748424688946,20.18687276,173.38,173.36,16.47487248]
[1748424689453,20.18687276,173.38,173.35,16.47487248]
[1748424689838,14.41919483,173.38,173.35,16.47487248]
[1748424691354,14.41919483,173.38,173.36,16.47487248]
[1748424691744,14.41919483,173.38,173.37,16.47487248]
[1748424692661,28.83506343,173.4,173.37,16.47487248]
[1748424693967,28.83506343,173.4,173.38,16.47487248]
[1748424700873,65.4944803,173.4,173.32,26.0]
[1748424701060,18.60582651,173.39,173.35,16.47487248]
[1748424701264,65.4944803,173.4,173.35,16.47487248]
[1748424701442,2.13107841,173.39,173.35,16.47487248]
[1748424701843,65.4944803,173.4,173.3,26.0]
[1748424702075,2.13173593,173.39,173.35,16.47487248]
[1748424702275,65.4944803,173.4,173.35,16.47487248]
[1748424702452,20.18687276,173.38,173.35,16.47487248]
[1748424703372,14.41919483,173.38,173.35,16.47487248]
[1748424704670,30.89406731,173.38,173.33,16.47487248]
[1748424704847,53.88995679,173.37,173.33,16.47487248]
[1748424705049,2.13508431,173.36,173.33,16.47487248]
[1748424705365,20.18920165,173.36,173.33,16.47487248]
[1748424706167,20.18920165,173.36,173.34,16.47487248]
[1748424706471,20.18920165,173.36,173.33,16.47487248]
[1748424707074,20.18920165,173.36,173.34,16.47487248]
[1748424707652,20.18920165,173.36,173.35,16.47487248]
[1748424708073,20.18920165,173.36,173.34,16.47487248]
[1748424710112,20.18920165,173.36,173.35,16.47487248]
[1748424710447,5.76834333,173.36,173.35,16.47487248]
[1748424712076,20.18638476,173.39,173.35,16.47487248]
[1748424712459,20.18638476,173.39,173.37,16.47487248]